fUSD/lending_fUSD_20240601
["ID","MTS","AMOUNT","RATE_DAILY","PERIOD"]
[328349730,1717211438195,-17580.173329,0.00030695,2]
[328349731,1717211438204,-741.936425,0.00030695,2]
[328349732,1717211438214,-286.598545,0.00030695,2]
[328349733,1717211438223,-172.941092,0.00030695,2]
[328349734,1717211438232,-172.401163,0.00030695,2]
[328349735,1717211438241,-227.105825,0.00030695,2]
[328349736,1717211438250,-241.676551,0.00030695,2]
[328349737,1717211438260,-188.741623,0.00030695,2]
[328349738,1717211438270,-187.1134,0.00030695,2]
[328349739,1717211438279,-152.443875,0.00030695,2]
[328349740,1717211438288,-172.401164,0.00030695,2]
[328349741,1717211438298,-227.105825,0.00030695,2]
[328349742,1717211438308,-173.321193,0.00030695,2]
[328349743,1717211438317,-187.537289,0.00030695,2]
[328349744,1717211438326,-194.198514,0.00030695,2]
[328349745,1717211438336,-202.042619,0.00030695,2]
[328349746,1717211438346,-151.0,0.00030695,7]
[328349747,1717211438355,-151.0,0.00030695,7]
[328349748,1717211438364,-151.0,0.00030695,7]
[328349749,1717211438374,-151.0,0.00030695,7]
[328349750,1717211438383,-190.143062,0.00030695,7]
[328349751,1717211438392,-190.143062,0.00030695,7]
[328349752,1717211438402,-190.143062,0.00030695,7]
[328349753,1717211438411,-190.143062,0.00030695,7]
[328349754,1717211438420,-157.068372,0.00030695,7]
[328349755,1717211438430,-154.405327,0.00030695,7]
[328349756,1717211438439,-151.0,0.00030695,7]
[328349757,1717211438448,-151.0,0.00030695,7]
[328349758,1717211438458,-151.0,0.00030695,7]
[328349759,1717211438468,-151.0,0.00030695,7]
[328349760,1717211438478,-185.990182,0.00030695,7]
[328349761,1717211438487,-185.990182,0.00030695,7]
[328349762,1717211438496,-151.0,0.00030695,7]
[328349763,1717211438505,-155.535209,0.00030695,7]
[328349764,1717211438514,-185.385374,0.00030695,7]
[328349765,1717211438523,-185.385374,0.00030695,7]
[328349766,1717211438532,-151.0,0.00030695,7]
[328349767,1717211438541,-151.0,0.00030695,7]
[328349768,1717211438551,-185.385374,0.00030695,7]
[328349769,1717211438560,-185.385374,0.00030695,7]
[328349770,1717211438569,-151.0,0.00030695,7]
[328349771,1717211438578,-165.109966,0.00030695,7]
[328349772,1717211438588,-154.706328,0.00030695,7]
[328349773,1717211438597,-151.0,0.00030695,7]
[328349774,1717211438606,-151.0,0.00030695,7]
[328349775,1717211438615,-162.675129,0.00030695,7]
[328349776,1717211438625,-259.665302,0.00030695,7]
[328349777,1717211438634,-259.665302,0.00030695,7]
[328349778,1717211438643,-258.810438,0.00030695,7]
[328349779,1717211438654,-258.810438,0.00030695,7]
[328349780,1717211438663,-164.003213,0.00030695,7]
[328349781,1717211438673,-151.0,0.00030695,7]
[328349782,1717211438682,-174.832679,0.00030695,7]
[328349783,1717211438692,-151.0,0.00030695,7]
[328349784,1717211438701,-174.832679,0.00030695,7]
[328349785,1717211438710,-151.0,0.00030695,7]
[328349786,1717211438719,-151.0,0.00030695,7]
[328349787,1717211438728,-215.678823,0.00030695,7]
[328349788,1717211438738,-169.260763,0.00030695,7]
[328349789,1717211438747,-169.260763,0.00030695,7]
[328349790,1717211438756,-169.260763,0.00030695,7]
[328349791,1717211438765,-169.260763,0.00030695,7]
[328349792,1717211438774,-151.0,0.00030695,7]
[328349793,1717211438783,-151.0,0.00030695,7]
[328349794,1717211438792,-2047.405339,0.00030695,7]
[328349795,1717211438801,-2047.405339,0.00030695,7]
[328349796,1717211438810,-230.942523,0.00030695,7]
[328349797,1717211438819,-2047.405339,0.00030695,7]
[328349798,1717211438829,-2047.405339,0.00030695,7]
[328349799,1717211438838,-230.335956,0.00030695,7]
[328349800,1717211438848,-230.335956,0.00030695,7]
[328349801,1717211438857,-230.335956,0.00030695,7]
[328349802,1717211438867,-230.335956,0.00030695,7]
[328349803,1717211438876,-417.07435,0.00030695,7]
[328349804,1717211438885,-417.07435,0.00030695,7]
[328349805,1717211438895,-151.0,0.00030695,7]
[328349806,1717211438905,-417.07435,0.00030695,7]
[328349807,1717211438914,-417.07435,0.00030695,7]
[328349808,1717211438923,-189.87,0.00030698,2]
[328349809,1717211438933,-2247.28697,0.000308,2]
[328349810,1717211438943,-670.61074916,0.00030829,2]
[328349811,1717211438952,-196.139911,0.00030838,2]
[328349812,1717211438961,-176.060267,0.00030838,2]
[328349813,1717211438971,-155.107814,0.00030838,2]
[328349814,1717211438980,-314.48326949,0.00030916,7]
[328349815,1717211438990,-153.73482735,0.00030918,7]
[328349816,1717211439000,-217.888424,0.00030918,7]
[328349817,1717211439009,-194.27032396,0.00030924,7]
[328349818,1717211439019,-154.36304779,0.00030926,7]
[328349819,1717211439028,-153.73482735,0.0003094,7]
[328349820,1717211439038,-194.27032396,0.00030965,7]
[328349821,1717211439048,-314.48326949,0.00030971,7]
[328349822,1717211439057,-166.66666667,0.00030973,7]
[328349823,1717211439066,-328.0,0.00031,8]
[328349824,1717211439076,-500.0,0.00031,2]
[328349825,1717211439085,-1200.0,0.00031,2]
[328349826,1717211439094,-300.0,0.00031,7]
[328349827,1717211439104,-150.1328676,0.00031004,7]
[328349828,1717211439114,-150.1328676,0.00031012,7]
[328349829,1717211439124,-151.0,0.00031068,7]
[328349830,1717211439134,-164.28486,0.00031068,7]
[328349831,1717211439143,-218.964995,0.00031068,7]
[328349833,1717211439154,-198.76,0.00031068,7]
[328349835,1717211439164,-185.990182,0.00031068,7]
[328349836,1717211439174,-185.990182,0.00031068,7]
[328349837,1717211439183,-151.0,0.00031068,7]
[328349838,1717211439192,-151.0,0.00031068,7]
[328349839,1717211439202,-151.0,0.00031068,7]
[328349840,1717211439211,-259.665302,0.00031068,7]
[328349841,1717211439220,-259.665302,0.00031068,7]
[328349842,1717211439230,-258.810438,0.00031068,7]
[328349843,1717211439239,-258.810438,0.00031068,7]
[328349844,1717211439249,-151.0,0.00031068,7]
[328349845,1717211439259,-174.832679,0.00031068,7]
[328349846,1717211439268,-151.0,0.00031068,7]
[328349847,1717211439278,-174.832679,0.00031068,7]
[328349848,1717211439288,-151.0,0.00031068,7]
[328349849,1717211439297,-151.0,0.00031068,7]
[328349850,1717211439307,-150.0,0.00031068,2]
[328349851,1717211439317,-451.954,0.00031068,2]
[328349852,1717211439327,-1024.553,0.00031068,2]
[328349853,1717211439336,-1266.0,0.00031068,2]
[328349854,1717211439345,-1224.0,0.00031068,2]
[328349855,1717211439355,-479.444,0.00031068,2]
[328349856,1717211439365,-614.0,0.00031068,2]
[328349857,1717211439375,-1663.508,0.00031068,2]
[328349858,1717211439384,-219.792,0.00031068,2]
[328349859,1717211439393,-192.686,0.00031068,2]
[328349860,1717211439404,-2423.258,0.00031068,2]
[328349861,1717211439413,-818.446,0.00031068,2]
[328349862,1717211439422,-449.571,0.00031068,2]
[328349863,1717211439431,-1669.422,0.00031068,2]
[328349864,1717211439440,-227.0,0.00031068,2]
[328349865,1717211439449,-1333.14,0.00031068,2]
[328349866,1717211439458,-158.411,0.00031068,2]
[328349867,1717211439467,-3169.0,0.00031068,2]
[328349868,1717211439477,-553.97,0.00031068,2]
[328349869,1717211439487,-155.54628285,0.00031072,7]
[328349870,1717211439496,-151.0,0.00031078,7]
[328349871,1717211439505,-151.0,0.00031078,7]
[328349872,1717211439514,-190.143062,0.00031078,7]
[328349873,1717211439633,-190.143062,0.00031078,7]
[328349874,1717211439643,-151.0,0.00031078,7]
[328349875,1717211439653,-185.990182,0.00031078,7]
[328349876,1717211439662,-185.990182,0.00031078,7]
[328349877,1717211439671,-151.0,0.00031078,7]
[328349878,1717211439681,-185.385374,0.00031078,7]
[328349879,1717211439690,-151.0,0.00031078,7]
[328349880,1717211439699,-185.385374,0.00031078,7]
[328349881,1717211439708,-151.0,0.00031078,7]
[328349882,1717211439718,-151.0,0.00031078,7]
[328349883,1717211439727,-259.665302,0.00031078,7]
[328349884,1717211439736,-259.665302,0.00031078,7]
[328349885,1717211439745,-258.810438,0.00031078,7]
[328349886,1717211439754,-258.810438,0.00031078,7]
[328349887,1717211439764,-151.0,0.00031078,7]
[328349888,1717211439773,-174.832679,0.00031078,7]
[328349889,1717211439783,-151.0,0.00031078,7]
[328349890,1717211439792,-174.832679,0.00031078,7]
[328349892,1717211439802,-151.0,0.00031078,7]
[328349894,1717211439811,-151.0,0.00031078,7]
[328349895,1717211439821,-169.260763,0.00031078,7]
[328349896,1717211439831,-169.260763,0.00031078,7]
[328349897,1717211439840,-169.260763,0.00031078,7]
[328349898,1717211439850,-169.260763,0.00031078,7]
[328349899,1717211439859,-151.0,0.00031078,7]
[328349900,1717211439868,-151.0,0.00031078,7]
[328349901,1717211439878,-2047.405339,0.00031078,7]
[328349902,1717211439888,-2047.405339,0.00031078,7]
[328349903,1717211439897,-2047.405339,0.00031078,7]
[328349904,1717211439907,-2047.405339,0.00031078,7]
[328349905,1717211439916,-230.335956,0.00031078,7]
[328349906,1717211439925,-230.335956,0.00031078,7]
[328349907,1717211439935,-230.335956,0.00031078,7]
[328349908,1717211439945,-230.335956,0.00031078,7]
[328349909,1717211439954,-417.07435,0.00031078,7]
[328349910,1717211439963,-417.07435,0.00031078,7]
[328349911,1717211439972,-417.07435,0.00031078,7]
[328349912,1717211439982,-417.07435,0.00031078,7]
[328349913,1717211439991,-4168.043212,0.00031078,2]
[328349914,1717211440001,-6132.078489,0.00031078,2]
[328349915,1717211440011,-293.304585,0.00031078,2]
[328349916,1717211440020,-159.296542,0.00031078,2]
[328349917,1717211440031,-172.728896,0.00031078,2]
[328349918,1717211440040,-6034.467269,0.00031078,2]
[328349919,1717211440049,-175.806831,0.00031078,2]
[328349920,1717211440059,-826.803298,0.00031078,2]
[328349921,1717211440068,-11548.787786,0.00031078,2]
[328349922,1717211440078,-678.05676,0.00031078,2]
[328349923,1717211440087,-16122.271636,0.00031078,2]
[328349924,1717211440096,-604.596322,0.00031078,2]
[328349925,1717211440106,-5799.47783458,0.00031078,2]
[328349926,1717211440279,-29385.97074342,0.00031078,2]
[328349927,1717211440289,-675.849069,0.00031078,2]
[328349928,1717211440299,-12461.957269,0.00031078,2]
[328349929,1717211440308,-17580.173329,0.00031078,2]
[328349930,1717211440318,-741.936425,0.00031078,2]
[328349931,1717211440327,-286.598545,0.00031078,2]
[328349932,1717211440336,-227.105825,0.00031078,2]
[328349933,1717211440346,-227.105825,0.00031078,2]
[328349934,1717211440355,-150.0,0.00031096,2]
[328349935,1717211440364,-150.0,0.00031096,2]
[328349936,1717211440374,-154.33974297,0.00031133,7]
[328349937,1717211440383,-150.1328676,0.00031146,7]
[328349938,1717211440392,-150.1328676,0.00031155,7]
[328349939,1717211440403,-150.0,0.00031168,7]
[328349940,1717211440412,-10326.24233671,0.00031184,10]
[328349941,1717211440422,-196.139911,0.00031224,2]
[328349942,1717211440432,-154.35798958,0.00031228,7]
[328349943,1717211440441,-155.54628285,0.00031251,7]
[328349944,1717211440450,-391.76232698,0.00031254,7]
[328349945,1717211440459,-151.0,0.00031268,7]
[328349946,1717211440469,-154.35798958,0.00031273,7]
[328349947,1717211440478,-153.11367864,0.00031275,7]
[328349948,1717211440487,-154.33974297,0.00031283,7]
[328349949,1717211440496,-194.27032396,0.00031306,7]
[328349950,1717211440505,-194.27032396,0.00031328,7]
[328349951,1717211440515,-24952.48079036,0.00031333,10]
[328349952,1717211440526,-10337.49284243,0.00031333,10]
[328349953,1717211440537,-154.46538345,0.00031344,7]
[328349954,1717211440549,-155.107814,0.00031352,2]
[328349955,1717211440559,-185.990182,0.00031356,7]
[328349956,1717211440568,-185.990182,0.00031356,7]
[328349957,1717211440578,-236.71636,0.00031356,7]
[328349958,1717211440587,-185.385374,0.00031356,7]
[328349959,1717211440597,-151.0,0.00031356,7]
[328349960,1717211440606,-185.385374,0.00031356,7]
[328349961,1717211440616,-194.27032396,0.00031364,7]
[328349962,1717211440625,-155.29545564,0.00031371,7]
[328349963,1717211440635,-154.35798958,0.00031385,7]
[328349964,1717211440645,-154.33974297,0.00031421,7]
[328349965,1717211440655,-153.73482735,0.00031423,7]
[328349966,1717211440664,-151.0,0.00031459,7]
[328349967,1717211440673,-8232.31782984,0.00031459,2]
[328349968,1717211440683,-151.0,0.00031462,7]
[328349969,1717211440692,-151.0,0.00031462,7]
[328349970,1717211440701,-228.868555,0.00031462,7]
[328349971,1717211440710,-190.143062,0.00031462,7]
[328349972,1717211440719,-190.143062,0.00031462,7]
[328349973,1717211440729,-190.143062,0.00031462,7]
[328349974,1717211440738,-190.143062,0.00031462,7]
[328349975,1717211440748,-151.0,0.00031462,7]
[328349976,1717211440757,-185.990182,0.00031462,7]
[328349977,1717211440766,-185.990182,0.00031462,7]
[328349978,1717211440775,-185.385374,0.00031462,7]
[328349979,1717211440785,-151.0,0.00031462,7]
[328349980,1717211440794,-185.385374,0.00031462,7]
[328349981,1717211440804,-151.0,0.00031462,7]
[328349982,1717211440814,-151.0,0.00031462,7]
[328349983,1717211440824,-151.0,0.00031462,7]
[328349984,1717211440833,-151.0,0.00031462,7]
[328349985,1717211440842,-259.665302,0.00031462,7]
[328349986,1717211440852,-259.665302,0.00031462,7]
[328349987,1717211440861,-258.810438,0.00031462,7]
[328349988,1717211440871,-258.810438,0.00031462,7]
[328349989,1717211440880,-151.0,0.00031462,7]
[328349990,1717211440889,-174.832679,0.00031462,7]
[328349991,1717211440898,-151.0,0.00031462,7]
[328349992,1717211440908,-174.832679,0.00031462,7]
[328349993,1717211440917,-151.0,0.00031462,7]
[328349994,1717211440926,-151.0,0.00031462,7]
[328349995,1717211440936,-169.260763,0.00031462,7]
[328349996,1717211440945,-169.260763,0.00031462,7]
[328349997,1717211440954,-151.0,0.00031462,7]
[328349998,1717211440964,-2047.405339,0.00031462,7]
[328349999,1717211440973,-2047.405339,0.00031462,7]
[328350000,1717211440982,-230.335956,0.00031462,7]
[328350001,1717211440991,-230.335956,0.00031462,7]
[328350002,1717211441001,-417.07435,0.00031462,7]
[328350003,1717211441010,-417.07435,0.00031462,7]
[328350004,1717211441019,-4168.043212,0.00031462,2]
[328350005,1717211441028,-6132.078489,0.00031462,2]
[328350006,1717211441038,-293.304585,0.00031462,2]
[328350007,1717211441047,-159.296542,0.00031462,2]
[328350008,1717211441056,-172.728896,0.00031462,2]
[328350009,1717211441065,-175.806831,0.00031462,2]
[328350010,1717211441075,-6034.467269,0.00031462,2]
[328350011,1717211441084,-826.803298,0.00031462,2]
[328350012,1717211441094,-11548.787786,0.00031462,2]
[328350013,1717211441103,-678.05676,0.00031462,2]
[328350014,1717211441112,-16122.271636,0.00031462,2]
[328350015,1717211441122,-604.596322,0.00031462,2]
[328350016,1717211441131,-27232.73036372,0.00031462,2]
[328350017,1717211441154,-303.305,0.00028914,2]
[328350018,1717211441165,-844.00971584,0.00028914,2]
[328350020,1717211441297,-168.02,0.00024384,2]
[328350021,1717211441307,-2670.30758398,0.00025415,2]
[328350022,1717211441318,-1361.91241602,0.00025415,2]
[328350023,1717211441327,-29.86350227,0.00026027,2]
[328350024,1717211441338,-172.38468273,0.00026027,2]
[328350025,1717211441347,-202.248185,0.00026849,2]
[328350026,1717211441356,-202.248185,0.00027671,14]
[328350027,1717211441366,-202.248185,0.00028493,14]
[328350028,1717211441375,-619.69887082,0.00028914,2]
[328350029,1717211441386,-544.38170658,0.00028914,2]
[328350030,1717211441397,-4562.56537436,0.00028914,2]
[328350031,1717211441409,-5161.19043,0.00028914,2]
[328350032,1717211441420,-3733.84704,0.00028914,2]
[328350033,1717211441431,-1708.16459994,0.00028914,2]
[328350034,1717211441440,-13847.06405232,0.00029342,2]
[328350035,1717211441451,-3441.37724298,0.00029342,2]
[328350036,1717211441462,-188.72144224,0.00029342,2]
[328350037,1717211441471,-1063.0,0.00029491,2]
[328350038,1717211441480,-7952.71821428,0.00031462,2]
[328350039,1717211441490,-675.849069,0.00031462,2]
[328350040,1717211441499,-12461.957269,0.00031462,2]
[328350041,1717211441508,-17580.173329,0.00031462,2]
[328350042,1717211441517,-741.936425,0.00031462,2]
[328350043,1717211441526,-286.598545,0.00031462,2]
[328350044,1717211441536,-227.105825,0.00031462,2]
[328350045,1717211441551,-227.105825,0.00031462,2]
[328350046,1717211441560,-172.941092,0.00031462,2]
[328350047,1717211441569,-172.401163,0.00031462,2]
[328350048,1717211441578,-172.401164,0.00031462,2]
[328350049,1717211441587,-391.76232698,0.00031492,7]
[328350050,1717211441596,-314.48326949,0.00031496,7]
[328350051,1717211441605,-194.27032396,0.00031499,7]
[328350052,1717211441613,-153.63545844,0.0003153,7]
[328350053,1717211441622,-154.35798958,0.00031539,7]
[328350054,1717211441631,-391.76232698,0.00031571,7]
[328350055,1717211441640,-153.73482735,0.00031574,7]
[328350056,1717211441650,-810.13,0.0003158,2]
[328350057,1717211441658,-194.27032396,0.00031599,7]
[328350058,1717211441668,-154.35798958,0.000316,7]
[328350059,1717211441677,-196.139911,0.00031609,2]
[328350060,1717211441686,-150.0,0.00031644,2]
[328350061,1717211441695,-150.0,0.00031644,2]
[328350062,1717211441704,-150.0,0.00031644,2]
[328350063,1717211441713,-150.0,0.00031644,2]
[328350064,1717211441722,-150.0,0.00031644,2]
[328350065,1717211441731,-150.0,0.00031644,2]
[328350066,1717211441740,-150.0,0.00031644,2]
[328350067,1717211441750,-150.0,0.00031644,2]
[328350068,1717211441758,-150.0,0.00031644,2]
[328350069,1717211441768,-150.0,0.00031644,2]
[328350070,1717211441777,-150.0,0.00031644,2]
[328350071,1717211441790,-150.0,0.00031644,2]
[328350072,1717211441799,-150.0,0.00031644,2]
[328350073,1717211441808,-150.0,0.00031644,2]
[328350074,1717211441817,-150.0,0.00031644,2]
[328350075,1717211441827,-183.48,0.00031644,2]
[328350076,1717211441836,-167.10434245,0.00031661,7]
[328350077,1717211441846,-314.48326949,0.00031666,7]
[328350078,1717211441855,-154.36304779,0.00031672,7]
[328350079,1717211441976,-185.990182,0.00031726,7]
[328350080,1717211441985,-185.990177,0.00031726,7]
[328350081,1717211441995,-185.385374,0.00031726,7]
[328350082,1717211442004,-151.0,0.00031726,7]
[328350083,1717211442013,-185.385374,0.00031726,7]
[328350084,1717211442022,-213.568251,0.00031726,7]
[328350085,1717211442031,-151.0,0.00031726,7]
[328350086,1717211442040,-259.665302,0.00031726,7]
[328350087,1717211442049,-259.665302,0.00031726,7]
[328350088,1717211442059,-258.810438,0.00031726,7]
[328350089,1717211442068,-258.810438,0.00031726,7]
[328350090,1717211442077,-258.810438,0.00031726,7]
[328350091,1717211442086,-258.810433,0.00031726,7]
[328350092,1717211442095,-151.0,0.00031726,7]
[328350093,1717211442104,-151.0,0.00031726,7]
[328350094,1717211442112,-200.51003,0.00031726,7]
[328350095,1717211442120,-174.832679,0.00031726,7]
[328350096,1717211442129,-174.832679,0.00031726,7]
[328350097,1717211442138,-174.832679,0.00031726,7]
[328350098,1717211442147,-174.832683,0.00031726,7]
[328350099,1717211442157,-151.0,0.00031726,7]
[328350100,1717211442166,-151.0,0.00031726,7]
[328350101,1717211442175,-151.0,0.00031726,7]
[328350102,1717211442183,-151.0,0.00031726,7]
[328350103,1717211442191,-169.260763,0.00031726,7]
[328350104,1717211442200,-169.260754,0.00031726,7]
[328350105,1717211442208,-151.0,0.00031726,7]
[328350106,1717211442217,-2047.405339,0.00031726,7]
[328350107,1717211442225,-2047.405345,0.00031726,7]
[328350108,1717211442234,-230.335956,0.00031726,7]
[328350109,1717211442242,-230.335957,0.00031726,7]
[328350110,1717211442250,-417.07435,0.00031726,7]
[328350111,1717211442260,-417.074355,0.00031726,7]
[328350112,1717211442269,-43599.53087062,0.00031726,4]
[328350113,1717211442280,-12290.958005,0.00031726,4]
[328350114,1717211442291,-93814.51112438,0.00031726,4]
[328350115,1717211442299,-153.73482735,0.0003173,7]
[328350116,1717211442308,-391.76232698,0.00031738,7]
[328350117,1717211442316,-154.35798958,0.0003174,7]
[328350118,1717211442325,-391.76232698,0.00031778,7]
[328350119,1717211442334,-14493.46849399,0.000318,9]
[328350120,1717211442342,-55459.24892572,0.000318,2]
[328350121,1717211442352,-194.27032396,0.00031803,7]
[328350122,1717211442360,-154.35798958,0.00031814,7]
[328350123,1717211442368,-334.04974451,0.00031817,2]
[328350124,1717211442377,-314.48326949,0.00031835,7]
[328350125,1717211442385,-1690.0,0.00031836,4]
[328350126,1717211442393,-4168.043212,0.00031846,2]
[328350127,1717211442402,-6132.078489,0.00031846,2]
[328350128,1717211442409,-293.304585,0.00031846,2]
[328350129,1717211442417,-159.296542,0.00031846,2]
[328350130,1717211442425,-172.728896,0.00031846,2]
[328350131,1717211442434,-6034.467269,0.00031846,2]
[328350132,1717211442442,-175.806831,0.00031846,2]
[328350133,1717211442450,-826.803298,0.00031846,2]
[328350134,1717211442458,-11548.787786,0.00031846,2]
[328350135,1717211442466,-678.05676,0.00031846,2]
[328350136,1717211442474,-16122.271636,0.00031846,2]
[328350137,1717211442482,-604.596322,0.00031846,2]
[328350138,1717211442490,-35185.448578,0.00031846,2]
[328350139,1717211442498,-675.849069,0.00031846,2]
[328350140,1717211442506,-12461.957269,0.00031846,2]
[328350141,1717211442515,-741.936425,0.00031846,2]
[328350142,1717211442523,-17580.173329,0.00031846,2]
[328350143,1717211442531,-286.598545,0.00031846,2]
[328350144,1717211442539,-227.105825,0.00031846,2]
[328350145,1717211442547,-227.105825,0.00031846,2]
[328350146,1717211442555,-190.143062,0.00031846,7]
[328350147,1717211442563,-190.143068,0.00031846,7]
[328350148,1717211442572,-151.0,0.00031846,7]
[328350149,1717211442580,-185.385374,0.00031846,7]
[328350150,1717211442588,-151.0,0.00031846,7]
[328350151,1717211442597,-185.385374,0.00031846,7]
[328350152,1717211442605,-151.0,0.00031846,7]
[328350153,1717211442613,-314.48326949,0.00031846,7]
[328350154,1717211442621,-259.665302,0.00031846,7]
[328350155,1717211442630,-259.665302,0.00031846,7]
[328350156,1717211442638,-391.76232698,0.00031847,7]
[328350157,1717211442646,-194.27032396,0.00031854,7]
[328350158,1717211442656,-153.73482735,0.00031866,7]
[328350159,1717211442665,-155.107814,0.00031866,2]
[328350160,1717211442673,-153.7,0.0003189,2]
[328350161,1717211442682,-154.36304779,0.00031901,7]
[328350162,1717211442690,-151.0,0.00031906,4]
[328350163,1717211442698,-150.0,0.00031909,2]
[328350164,1717211442706,-215.43247165,0.00031913,7]
[328350165,1717211442715,-162.22763367,0.0003192,7]
[328350166,1717211442723,-150.1328676,0.00031921,7]
[328350167,1717211442731,-153.73482735,0.00031938,7]
[328350168,1717211442740,-154.35798958,0.00031977,7]
[328350169,1717211442750,-196.139911,0.00031995,2]
[328350170,1717211442759,-10056.62,0.00032,5]
[328350171,1717211442768,-334.96889445,0.00032,4]
[328350172,1717211442777,-155.4092531,0.00032,4]
[328350173,1717211442787,-154.88905878,0.00032005,7]
[328350174,1717211442796,-670.61074916,0.00032014,2]
[328350175,1717211442805,-154.35798958,0.00032022,7]
[328350176,1717211442814,-314.48326949,0.00032023,7]
[328350177,1717211442823,-391.76232698,0.00032024,7]
[328350178,1717211442833,-162.22763367,0.00032034,7]
[328350179,1717211442843,-154.36304779,0.0003204,7]
[328350180,1717211442852,-391.76232698,0.00032055,7]
[328350181,1717211442861,-391.76232698,0.00032067,7]
[328350182,1717211442872,-152.0,0.00032084,3]
[328350183,1717211442880,-391.76232698,0.00032112,7]
[328350184,1717211442888,-154.35798958,0.00032122,7]
[328350185,1717211442897,-154.35798958,0.00032127,7]
[328350186,1717211442907,-155.29545564,0.00032151,7]
[328350187,1717211442916,-154.33974297,0.00032155,7]
[328350188,1717211442925,-154.33974297,0.00032158,7]
[328350189,1717211442935,-194.27032396,0.00032159,7]
[328350190,1717211442944,-153.56211949,0.00032178,7]
[328350191,1717211442953,-259.665302,0.00032192,7]
[328350192,1717211442964,-259.665302,0.00032192,7]
[328350193,1717211442974,-10326.24233671,0.00032192,10]
[328350194,1717211442984,-150.0,0.00032203,2]
[328350195,1717211442993,-314.48326949,0.00032204,7]
[328350196,1717211443003,-154.33974297,0.0003221,7]
[328350197,1717211443012,-154.35798958,0.0003221,7]
[328350198,1717211443021,-391.76232698,0.00032213,7]
[328350199,1717211443034,-5328.0,0.00032219,4]
[328350200,1717211443049,-67066.63778314,0.0003222,2]
[328350201,1717211443066,-742.11629914,0.0003222,2]
[328350202,1717211443082,-277.0527081,0.0003222,2]
[328350203,1717211443098,-251.60714365,0.0003222,2]
[328350204,1717211443139,-261.0,0.00030698,5]
[328350205,1717211443152,-7479.27643094,0.0003222,2]
[328350207,1717211443177,-13808.77490803,0.0003222,2]
[328350208,1717211443193,-311.558,0.0003222,2]
[328350209,1717211443221,-1770.000003,0.0003222,2]
[328350210,1717211443235,-378.16,0.0003222,2]
[328350211,1717211443250,-2853.54282387,0.0003222,2]
[328350214,1717211443345,-17477.16273754,0.00029771,2]
[328350217,1717211443355,-35657.3992597,0.0003222,2]
[328350220,1717211443369,-71859.78330026,0.0003222,2]
[328350222,1717211443383,-4104.32857417,0.0003222,2]
[328350224,1717211443769,-151.0,0.00028161,7]
[328350225,1717211443782,-60514.38437898,0.0003222,2]
[328350226,1717211443798,-15615.49044224,0.0003222,2]
[328350228,1717211446287,-384.95152272,0.0003222,2]
[328350781,1717211954307,420.09,0.00029811,60]
[328350785,1717212340140,-161.18636921,0.00017158,2]
[328350786,1717212340161,-1311.75839556,0.00017254,2]
[328350794,1717212632858,-663.99313306,0.00017255,2]
[328350795,1717212632871,-266.27999998,0.00017255,2]
[328350796,1717212632884,-278.20649646,0.00017255,2]
[328350797,1717212632896,-221.79350354,0.00017256,2]
[328350799,1717212633018,-287.11481083,0.00017256,2]
[328350801,1717212633032,-942.08096292,0.00017256,2]
[328350803,1717212633046,-7610.04488094,0.00017256,2]
[328350806,1717212633057,-238.92697286,0.00017258,2]
[328350808,1717212633067,-363.63677021,0.0002,2]
[328350809,1717212633078,-226.50038929,0.000201,2]
[328350810,1717212633089,-594.0,0.000229,2]
[328350811,1717212633100,-150.99,0.000229,2]
[328350812,1717212633112,-548.55290876,0.00023849,2]